fUST/lending_fUST_20250520
["ID","MTS","AMOUNT","RATE_DAILY","PERIOD"]
[361704194,1747705856906,-1388.3612436,0.00016986,2]
[361704195,1747705857139,-1237.43049552,0.00016986,2]
[361704304,1747707038363,-5000.0,0.00013159,2]
[361704305,1747707038374,-300.0,0.00013698,2]
[361704306,1747707038383,-300.0,0.00013698,2]
[361704307,1747707038393,-500.0,0.00013699,2]
[361704308,1747707038403,-500.0,0.00013699,2]
[361704310,1747707038413,-500.0,0.00013699,2]
[361704312,1747707038423,-500.0,0.00013699,2]
[361704314,1747707038432,-500.0,0.00013699,2]
[361704316,1747707038442,-500.0,0.00013699,2]
[361704318,1747707038451,-500.0,0.00013699,2]
[361704319,1747707038461,-500.0,0.00013699,2]
[361704320,1747707038470,-232.238756,0.00013699,2]
[361704321,1747707038481,-253.2295417,0.00014462,2]
[361704322,1747707038491,-4783.93482748,0.00014565,2]
[361704323,1747707038515,-4305.04214052,0.00014565,2]
[361704324,1747707038526,-3348.2728268,0.00014971,2]
[361704325,1747707038536,-420.0,0.00015011,2]
[361704326,1747707038545,-262.8134775,0.00015054,2]
[361704327,1747707038554,-351.165388,0.00015307,2]
[361704328,1747707038563,-1975.65311585,0.000156,2]
[361704401,1747707040514,-699.79990312,0.000156,2]
[361704403,1747707040525,-810.63601149,0.000156,2]
[361704408,1747707040568,-279.89651618,0.000156,2]
[361704415,1747707040622,-1584.92049102,0.000156,2]
[361704417,1747707040633,-2675.45301869,0.000156,2]
[361704419,1747707040643,-2675.45301869,0.00015934,2]
[361704421,1747707040653,-5000.0,0.00016,2]
[361704423,1747707040664,-89.06093971,0.00016016,2]
[361704424,1747707040675,-474.37807099,0.00016016,2]
[361704425,1747707040686,-318.193089,0.00016164,2]
[361704426,1747707040695,-86.62615865,0.00016179,2]
[361704427,1747707040719,-64.37384135,0.00016179,2]
[361704428,1747707040729,-207.4,0.00016179,2]
[361704429,1747707040740,-2675.45301869,0.00016279,2]
[361704430,1747707040750,-151.0,0.000164,2]
[361704431,1747707040759,-909.87,0.00016428,3]
[361704432,1747707040776,-454.93,0.00016428,3]
[361704433,1747707040786,-227.47,0.00016428,3]
[361704435,1747707040798,-682.41,0.00016428,3]
[361704436,1747707040809,-163.79697453,0.00016429,2]
[361704437,1747707040820,-4906.75009364,0.00016435,2]
[361704439,1747707040830,-523.81589584,0.00016436,2]
[361704441,1747707040841,-500.0,0.00016436,2]
[361704442,1747707040851,-500.0,0.00016436,2]
[361704443,1747707040860,-500.0,0.00016436,2]
[361704444,1747707040871,-500.0,0.00016436,2]
[361704445,1747707040882,-500.0,0.00016436,2]
[361704446,1747707040893,-248.93970934,0.00016436,2]
[361704447,1747707040903,-500.0,0.00016436,2]
[361704448,1747707040913,-500.0,0.00016436,2]
[361704449,1747707040924,-500.0,0.00016436,2]
[361704450,1747707040935,-500.0,0.00016436,2]
[361704451,1747707040946,-500.0,0.00016436,2]
[361704452,1747707040955,-500.0,0.00016436,2]
[361704453,1747707040965,-570.74223373,0.00016436,2]
[361704454,1747707040975,-500.0,0.00016436,2]
[361704455,1747707040986,-554.61509674,0.00016436,2]
[361704456,1747707040997,-500.0,0.00016437,2]
[361704457,1747707041008,-500.0,0.00016437,2]
[361704458,1747707041020,-231.02481111,0.00016437,2]
[361704459,1747707041031,-500.0,0.00016437,2]
[361704460,1747707041041,-500.0,0.00016437,2]
[361704461,1747707041052,-297.2951345,0.00016437,2]
[361704462,1747707041062,-159.231174,0.00016438,2]
[361704463,1747707041073,-159.231174,0.00016438,2]
[361704464,1747707041084,-151.0,0.00016438,2]
[361704465,1747707041095,-212.98992,0.00016438,2]
[361704466,1747707041107,-212.98992,0.00016438,2]
[361704467,1747707041116,-500.0,0.00016438,2]
[361704468,1747707041126,-500.0,0.00016438,2]
[361704469,1747707041136,-500.0,0.00016438,2]
[361704470,1747707041146,-500.0,0.00016438,2]
[361704471,1747707041156,-500.0,0.00016438,2]
[361704472,1747707041166,-500.0,0.00016438,2]
[361704473,1747707041178,-391.24477352,0.00016438,2]
[361704474,1747707041188,-500.0,0.00016438,2]
[361704475,1747707041198,-430.0,0.00016438,2]
[361704476,1747707041208,-222.2149244,0.00016438,2]
[361704477,1747707041218,-430.0,0.00016438,2]
[361704478,1747707041228,-647.78,0.00016438,2]
[361704479,1747707041238,-266.85781206,0.00016438,2]
[361704480,1747707041248,-430.0,0.00016438,2]
[361704481,1747707041258,-430.0,0.00016438,2]
[361704482,1747707041267,-938.13,0.00016438,2]
[361704483,1747707041279,-358.25576981,0.00016438,2]
[361704484,1747707041290,-471.4,0.00016438,2]
[361704485,1747707041300,-158.29723968,0.00016438,2]
[361704486,1747707041310,-422.10915316,0.00016438,2]
[361704487,1747707041320,-430.0,0.00016438,2]
[361704488,1747707041330,-294.49944318,0.00016438,2]
[361704489,1747707041339,-430.0,0.00016438,2]
[361704490,1747707041349,-430.0,0.00016438,2]
[361704491,1747707041358,-430.0,0.00016438,2]
[361704492,1747707041372,-430.0,0.00016438,2]
[361704493,1747707041384,-430.0,0.00016438,2]
[361704494,1747707041393,-358.0,0.00016438,2]
[361704495,1747707041403,-256.00751765,0.00016438,2]
[361704496,1747707041412,-430.0,0.00016438,2]
[361704497,1747707041422,-283.58695166,0.00016438,2]
[361704498,1747707041431,-430.0,0.00016438,2]
[361704499,1747707041441,-430.0,0.00016438,2]
[361704500,1747707041451,-196.85420837,0.00016438,2]
[361704501,1747707041460,-397.19859677,0.00016438,2]
[361704502,1747707041470,-194.37141836,0.00016438,2]
[361704503,1747707041480,-308.69738469,0.00016438,2]
[361704504,1747707041489,-430.0,0.00016438,2]
[361704505,1747707041499,-573.19,0.00016438,2]
[361704506,1747707041509,-434.34400529,0.00016438,2]
[361704507,1747707041518,-370.98862157,0.00016438,2]
[361704508,1747707041528,-430.0,0.00016438,2]
[361704509,1747707041537,-430.0,0.00016438,2]
[361704510,1747707041547,-430.0,0.00016438,2]
[361704511,1747707041557,-430.0,0.00016438,2]
[361704512,1747707041566,-430.0,0.00016438,2]
[361704513,1747707041575,-354.20970775,0.00016438,2]
[361704514,1747707041585,-971.47,0.00016438,2]
[361704515,1747707041595,-366.68832301,0.00016438,2]
[361704516,1747707041604,-344.93519171,0.00016438,2]
[361704517,1747707041615,-365.70682713,0.00016438,2]
[361704518,1747707041625,-366.02113348,0.00016438,2]
[361704519,1747707041635,-622.88,0.00016438,2]
[361704520,1747707041644,-430.0,0.00016438,2]
[361704521,1747707041654,-430.0,0.00016438,2]
[361704522,1747707041664,-430.0,0.00016438,2]
[361704523,1747707041674,-353.39584252,0.00016438,2]
[361704524,1747707041683,-430.0,0.00016438,2]
[361704525,1747707041692,-430.0,0.00016438,2]
[361704526,1747707041702,-423.89871813,0.00016438,2]
[361704527,1747707041713,-430.0,0.00016438,2]
[361704528,1747707041723,-407.16052497,0.00016438,2]
[361704529,1747707041733,-430.0,0.00016438,2]
[361704530,1747707041745,-300.25979374,0.00016438,2]
[361704531,1747707041756,-430.0,0.00016438,2]
[361704532,1747707041766,-430.0,0.00016438,2]
[361704533,1747707041777,-498.46,0.00016438,2]
[361704534,1747707041787,-269.62441583,0.00016438,2]
[361704535,1747707041796,-472.17,0.00016438,2]
[361704536,1747707041807,-430.0,0.00016438,2]
[361704537,1747707041816,-430.0,0.00016438,2]
[361704538,1747707041826,-430.0,0.00016438,2]
[361704539,1747707041836,-557.05581822,0.00016438,2]
[361704540,1747707041847,-430.0,0.00016438,2]
[361704541,1747707041857,-430.0,0.00016438,2]
[361704542,1747707041866,-430.0,0.00016438,2]
[361704543,1747707041876,-430.0,0.00016438,2]
[361704544,1747707041885,-430.0,0.00016438,2]
[361704545,1747707041896,-408.44003442,0.00016438,2]
[361704546,1747707041907,-430.0,0.00016438,2]
[361704547,1747707041919,-430.0,0.00016438,2]
[361704548,1747707041930,-430.0,0.00016438,2]
[361704549,1747707041941,-430.0,0.00016438,2]
[361704550,1747707041951,-441.69540177,0.00016438,2]
[361704551,1747707041961,-154.59060824,0.00016438,2]
[361704552,1747707041971,-435.6786437,0.00016438,2]
[361704553,1747707041982,-430.0,0.00016438,2]
[361704554,1747707041992,-430.0,0.00016438,2]
[361704555,1747707042001,-430.0,0.00016438,2]
[361704556,1747707042012,-758.94,0.00016438,2]
[361704557,1747707042023,-450.0,0.00016438,2]
[361704558,1747707042033,-544.47,0.00016438,2]
[361704559,1747707042043,-430.0,0.00016438,2]
[361704560,1747707042053,-642.36,0.00016438,2]
[361704561,1747707042064,-430.0,0.00016438,2]
[361704562,1747707042074,-966.95,0.00016438,2]
[361704563,1747707042084,-430.0,0.00016438,2]
[361704564,1747707042094,-330.0,0.00016438,2]
[361704565,1747707042105,-430.0,0.00016438,2]
[361704566,1747707042114,-430.0,0.00016438,2]
[361704567,1747707042124,-430.0,0.00016438,2]
[361704568,1747707042135,-533.78,0.00016438,2]
[361704569,1747707042145,-430.0,0.00016438,2]
[361704570,1747707042154,-430.0,0.00016438,2]
[361704571,1747707042165,-430.0,0.00016438,2]
[361704572,1747707042175,-430.0,0.00016438,2]
[361704573,1747707042187,-430.0,0.00016438,2]
[361704574,1747707042197,-450.0,0.00016438,2]
[361704575,1747707042208,-430.0,0.00016438,2]
[361704576,1747707042219,-430.0,0.00016438,2]
[361704577,1747707042228,-430.0,0.00016438,2]
[361704578,1747707042239,-430.0,0.00016438,2]
[361704579,1747707042249,-917.22,0.00016438,2]
[361704580,1747707042263,-430.0,0.00016438,2]
[361704581,1747707042274,-430.0,0.00016438,2]
[361704582,1747707042284,-712.72,0.00016438,2]
[361704583,1747707042295,-430.0,0.00016438,2]
[361704584,1747707042307,-430.0,0.00016438,2]
[361704585,1747707042316,-430.0,0.00016438,2]
[361704586,1747707042327,-979.55,0.00016438,2]
[361704587,1747707042338,-425.1694589,0.00016438,2]
[361704592,1747707044881,-4.8305411,0.00016438,2]
[361704593,1747707044892,-430.0,0.00016438,2]
[361704594,1747707044902,-430.0,0.00016438,2]
[361704595,1747707044911,-640.22,0.00016438,2]
[361704596,1747707044922,-430.0,0.00016438,2]
[361704597,1747707044933,-430.0,0.00016438,2]
[361704598,1747707044944,-507.01,0.00016438,2]
[361704599,1747707044955,-944.22,0.00016438,2]
[361704600,1747707044966,-430.0,0.00016438,2]
[361704601,1747707044977,-554.29160352,0.00016438,2]
[361704602,1747707044987,-1950.22,0.00016438,2]
[361704603,1747707044997,-430.0,0.00016438,2]
[361704604,1747707045008,-430.0,0.00016438,2]
[361704605,1747707045018,-440.0,0.00016438,2]
[361704606,1747707045030,-430.0,0.00016438,2]
[361704607,1747707045040,-430.0,0.00016438,2]
[361704608,1747707045049,-1340.68,0.00016438,2]
[361704609,1747707045058,-451.80412604,0.00016438,2]
[361704610,1747707045067,-430.0,0.00016438,2]
[361704611,1747707045077,-709.2,0.00016438,2]
[361704612,1747707045087,-1328.98,0.00016438,2]
[361704613,1747707045096,-430.0,0.00016438,2]
[361704614,1747707045105,-430.0,0.00016438,2]
[361704615,1747707045115,-430.0,0.00016438,2]
[361704616,1747707045124,-452.72055257,0.00016438,2]
[361704617,1747707045133,-860.81,0.00016438,2]
[361704618,1747707045143,-381.79631061,0.00016438,2]
[361704619,1747707045152,-430.0,0.00016438,2]
[361704620,1747707045162,-415.97394235,0.00016438,2]
[361704621,1747707045171,-430.0,0.00016438,2]
[361704622,1747707045181,-430.0,0.00016438,2]
[361704623,1747707045190,-430.0,0.00016438,2]
[361704624,1747707045202,-430.0,0.00016438,2]
[361704625,1747707045212,-431.58726884,0.00016438,2]
[361704626,1747707045222,-430.0,0.00016438,2]
[361704627,1747707045231,-1044.48,0.00016438,2]
[361704628,1747707045241,-430.0,0.00016438,2]
[361704629,1747707045250,-430.0,0.00016438,2]
[361704630,1747707045263,-283.54842666,0.00016438,2]
[361704631,1747707045275,-807.62,0.00016438,2]
[361704632,1747707045284,-290.0,0.00016438,2]
[361704633,1747707045294,-430.0,0.00016438,2]
[361704634,1747707045304,-430.0,0.00016438,2]
[361704636,1747707045315,-357.1245981,0.00016438,2]
[361704638,1747707045328,-72.8754019,0.00016438,2]
[361704640,1747707045339,-430.61814523,0.00016438,2]
[361704642,1747707045349,-711.42766085,0.00016438,2]
[361704644,1747707045369,-445.07233915,0.00016438,2]
[361704646,1747707045379,-430.0,0.00016438,2]
[361704648,1747707045389,-191.18533415,0.00016438,2]
[361704661,1747707046414,-238.81466585,0.00016438,2]
[361704662,1747707046425,-384.88213467,0.00016438,2]
[361704664,1747707046435,-430.0,0.00016438,2]
[361704665,1747707046445,-430.0,0.00016438,2]
[361704666,1747707046456,-621.98,0.00016438,2]
[361704667,1747707046466,-430.0,0.00016438,2]
[361704668,1747707046477,-431.56015778,0.00016438,2]
[361704669,1747707046487,-430.0,0.00016438,2]
[361704670,1747707046497,-430.0,0.00016438,2]
[361704671,1747707046508,-390.016227,0.00016438,2]
[361704672,1747707046518,-430.0,0.00016438,2]
[361704673,1747707046529,-430.0,0.00016438,2]
[361704674,1747707046541,-499.65,0.00016438,2]
[361704675,1747707046550,-390.016227,0.00016438,2]
[361704676,1747707046560,-430.0,0.00016438,2]
[361704677,1747707046570,-284.34870566,0.00016438,2]
[361704678,1747707046579,-240.46867527,0.00016438,2]
[361704679,1747707046589,-302.09552927,0.00016438,2]
[361704680,1747707046599,-430.0,0.00016438,2]
[361704681,1747707046609,-295.36859913,0.00016438,2]
[361704682,1747707046619,-668.28,0.00016438,2]
[361704683,1747707046630,-430.0,0.00016438,2]
[361704684,1747707046640,-433.99,0.00016438,2]
[361704685,1747707046650,-304.14867402,0.00016438,2]
[361704687,1747707046660,-430.0,0.00016438,2]
[361704688,1747707046669,-199.50646734,0.00016438,2]
[361704689,1747707046680,-431.84426096,0.00016438,2]
[361704690,1747707046690,-1093.96,0.00016438,2]
[361704691,1747707046699,-430.0,0.00016438,2]
[361704692,1747707046709,-430.0,0.00016438,2]
[361704693,1747707046719,-209.30534601,0.00016438,2]
[361704694,1747707046729,-430.0,0.00016438,2]
[361704695,1747707046739,-430.0,0.00016438,2]
[361704696,1747707046749,-732.58,0.00016438,2]
[361704697,1747707046759,-430.0,0.00016438,2]
[361704698,1747707046769,-741.62,0.00016438,2]
[361704699,1747707046782,-430.82992539,0.00016438,2]
[361704700,1747707046792,-430.0,0.00016438,2]
[361704701,1747707046803,-430.0,0.00016438,2]
[361704702,1747707046814,-634.82,0.00016438,2]
[361704703,1747707046824,-500.0,0.00016438,2]
[361704704,1747707046835,-332.32117606,0.00016438,2]
[361704705,1747707046846,-364.55077017,0.00016438,2]
[361704706,1747707046855,-430.0,0.00016438,2]
[361704707,1747707046865,-432.88679001,0.00016438,2]
[361704708,1747707046876,-429.08629935,0.00016438,2]
[361704709,1747707046886,-430.0,0.00016438,2]
[361704710,1747707046897,-87.2445047,0.00016438,2]
[361704711,1747707046911,-342.7554953,0.00016438,2]
[361704712,1747707046921,-157.2445047,0.00016438,2]
[361704713,1747707046932,-272.7554953,0.00016438,2]
[361704714,1747707046942,-430.0,0.00016438,2]
[361704715,1747707046952,-7.07131246,0.00016438,2]
[361704716,1747707046964,-579.30868754,0.00016438,2]
[361704717,1747707046974,-223.54341467,0.00016438,2]
[361704718,1747707046984,-106.79154753,0.00016438,2]
[361704719,1747707046997,-323.20845247,0.00016438,2]
[361704720,1747707047006,-430.0,0.00016438,2]
[361704721,1747707047016,-430.0,0.00016438,2]
[361704722,1747707047028,-574.83,0.00016438,2]
[361704723,1747707047038,-466.73568256,0.00016438,2]
[361704724,1747707047047,-473.45402543,0.00016438,2]
[361704725,1747707047057,-430.0,0.00016438,2]
[361704726,1747707047066,-394.05846507,0.00016438,2]
[361704727,1747707047077,-431.29382895,0.00016438,2]
[361704728,1747707047086,-424.31785443,0.00016438,2]
[361704729,1747707047095,-301.57788311,0.00016438,2]
[361704730,1747707047105,-423.80175107,0.00016438,2]
[361704731,1747707047115,-1497.72,0.00016438,2]
[361704732,1747707047126,-427.52692979,0.00016438,2]
[361704733,1747707047135,-430.0,0.00016438,2]
[361704734,1747707047144,-578.84,0.00016438,2]
[361704735,1747707047154,-430.0,0.00016438,2]
[361704736,1747707047163,-404.53360833,0.00016438,2]
[361704737,1747707047173,-316.00165999,0.00016438,2]
[361704738,1747707047183,-401.14099018,0.00016438,2]
[361704739,1747707047193,-442.52566844,0.00016438,2]
[361704740,1747707047203,-430.0,0.00016438,2]
[361704741,1747707047212,-680.87,0.00016438,2]
[361704742,1747707047223,-430.0,0.00016438,2]
[361704743,1747707047232,-476.98093947,0.00016438,2]
[361704744,1747707047242,-430.0,0.00016438,2]
[361704745,1747707047253,-430.0,0.00016438,2]
[361704746,1747707047265,-430.0,0.00016438,2]
[361704747,1747707047277,-430.84889763,0.00016438,2]
[361704748,1747707047287,-430.0,0.00016438,2]
[361704749,1747707047298,-430.0,0.00016438,2]
[361704750,1747707047307,-430.0,0.00016438,2]
[361704751,1747707047317,-430.0,0.00016438,2]
[361704752,1747707047327,-430.0,0.00016438,2]
[361704753,1747707047337,-402.79834797,0.00016438,2]
[361704754,1747707047348,-430.0,0.00016438,2]
[361704755,1747707047357,-423.30618989,0.00016438,2]
[361704756,1747707047367,-424.85051965,0.00016438,2]
[361704757,1747707047377,-430.0,0.00016438,2]
[361704758,1747707047386,-488.59,0.00016438,2]
[361704759,1747707047397,-430.0,0.00016438,2]
[361704760,1747707047406,-430.0,0.00016438,2]
[361704761,1747707047416,-565.52555624,0.00016438,2]
[361704762,1747707047426,-430.0,0.00016438,2]
[361704763,1747707047436,-430.0,0.00016438,2]
[361704764,1747707047446,-1080.95,0.00016438,2]
[361704765,1747707047455,-174.849355,0.00016438,2]
[361704766,1747707047465,-432.45537499,0.00016438,2]
[361704767,1747707047475,-974.13,0.00016438,2]
[361704768,1747707047486,-430.0,0.00016438,2]
[361704769,1747707047496,-374.25113867,0.00016438,2]
[361704770,1747707047505,-430.0,0.00016438,2]
[361704771,1747707047515,-430.0,0.00016438,2]
[361704772,1747707047526,-430.0,0.00016438,2]
[361704773,1747707047536,-430.0,0.00016438,2]
[361704774,1747707047546,-496.7,0.00016438,2]
[361704775,1747707047556,-908.61,0.00016438,2]
[361704776,1747707047565,-430.0,0.00016438,2]
[361704777,1747707047575,-433.4467067,0.00016438,2]
[361704778,1747707047585,-430.0,0.00016438,2]
[361704779,1747707047596,-701.25,0.00016438,2]
[361704780,1747707047605,-430.0,0.00016438,2]
[361704781,1747707047615,-1415.23,0.00016438,2]
[361704782,1747707047624,-432.61304109,0.00016438,2]
[361704783,1747707047633,-430.0,0.00016438,2]
[361704784,1747707047642,-402.20831489,0.00016438,2]
[361704785,1747707047652,-1447.01,0.00016438,2]
[361704786,1747707047662,-430.0,0.00016438,2]
[361704787,1747707047671,-430.0,0.00016438,2]
[361704788,1747707047681,-430.0,0.00016438,2]
[361704789,1747707047690,-3968.47,0.00016438,2]
[361704790,1747707047700,-400.0,0.00016438,2]
[361704791,1747707047710,-433.14588988,0.00016438,2]
[361704792,1747707047720,-430.0,0.00016438,2]
[361704793,1747707047729,-430.0,0.00016438,2]
[361704794,1747707047740,-433.68553969,0.00016438,2]
[361704795,1747707047750,-1806.35,0.00016438,2]
[361704796,1747707047760,-1661.26,0.00016438,2]
[361704797,1747707047770,-433.66992306,0.00016438,2]
[361704798,1747707047784,-151.0,0.00016438,2]
[361704799,1747707047795,-566.1,0.00016438,2]
[361704800,1747707047805,-430.0,0.00016438,2]
[361704801,1747707047816,-430.0,0.00016438,2]
[361704802,1747707047826,-342.77793417,0.00016438,2]
[361704803,1747707047838,-430.0,0.00016438,2]
[361704804,1747707047848,-396.55837952,0.00016438,2]
[361704805,1747707047859,-546.25,0.00016438,2]
[361704806,1747707047869,-573.09409767,0.00016438,2]
[361704807,1747707047879,-426.14258396,0.00016438,2]
[361704808,1747707047888,-430.0,0.00016438,2]
[361704809,1747707047899,-430.0,0.00016438,2]
[361704810,1747707047908,-430.0,0.00016438,2]
[361704811,1747707047918,-430.0,0.00016438,2]
[361704812,1747707047928,-430.0,0.00016438,2]
[361704813,1747707047938,-430.0,0.00016438,2]
[361704814,1747707047947,-5847.76,0.00016438,2]
[361704815,1747707047957,-373.43730208,0.00016438,2]
[361704816,1747707047966,-1531.76,0.00016438,2]
[361704817,1747707047976,-430.0,0.00016438,2]
[361704818,1747707047985,-841.1,0.00016438,2]
[361704819,1747707047995,-1649.28,0.00016438,2]
[361704820,1747707048005,-344.91911841,0.00016438,2]
[361704821,1747707048015,-630.82,0.00016438,2]
[361704822,1747707048027,-1464.69,0.00016438,2]
[361704823,1747707048037,-151.0,0.00016438,2]
[361704824,1747707048047,-684.85,0.00016438,2]
[361704825,1747707048057,-479.13705426,0.00016438,2]
[361704826,1747707048067,-430.0,0.00016438,2]
[361704827,1747707048076,-430.0,0.00016438,2]
[361704828,1747707048087,-449.7,0.00016438,2]
[361704829,1747707048096,-430.0,0.00016438,2]
[361704830,1747707048106,-474.48,0.00016438,2]
[361704831,1747707048116,-430.0,0.00016438,2]
[361704832,1747707048126,-1963.83887971,0.00016438,2]
[361704833,1747707048141,-543.43112029,0.00016438,2]
[361704834,1747707048151,-442.88201686,0.00016438,2]
[361704835,1747707048161,-430.0,0.00016438,2]
[361704836,1747707048171,-430.0,0.00016438,2]
[361704837,1747707048182,-430.0,0.00016438,2]
[361704838,1747707048192,-719.16,0.00016438,2]
[361704839,1747707048202,-604.24,0.00016438,2]
[361704840,1747707048212,-430.0,0.00016438,2]
[361704841,1747707048223,-319.97345531,0.00016438,2]
[361704842,1747707048234,-542.61785065,0.00016438,2]
[361704843,1747707048245,-430.0,0.00016438,2]
[361704844,1747707048256,-613.25,0.00016438,2]
[361704845,1747707048270,-498.32538713,0.00016438,2]
[361704846,1747707048286,-386.37461287,0.00016438,2]
[361704847,1747707048297,-170.77967807,0.00016438,2]
[361704848,1747707048308,-1518.15,0.00016438,2]
[361704849,1747707048318,-430.0,0.00016438,2]
[361704850,1747707048328,-430.0,0.00016438,2]
[361704851,1747707048338,-504.82,0.00016438,2]
[361704852,1747707048350,-631.23,0.00016438,2]
[361704853,1747707048360,-430.0,0.00016438,2]
[361704854,1747707048370,-430.0,0.00016438,2]
[361704855,1747707048380,-430.0,0.00016438,2]
[361704856,1747707048389,-2271.21,0.00016438,2]
[361704857,1747707048399,-549.23660071,0.00016438,2]
[361704858,1747707048409,-430.0,0.00016438,2]
[361704859,1747707048419,-433.6863415,0.00016438,2]
[361704860,1747707048429,-772.63095734,0.00016438,2]
[361704861,1747707048455,-107.84904266,0.00016438,2]
[361704862,1747707048465,-430.0,0.00016438,2]
[361704863,1747707048475,-116.75459779,0.00016438,2]
[361704886,1747707500052,197.0,0.00011,2]
[361704887,1747707508831,197.0,0.00011,2]
[361704974,1747708238499,-5000.0,0.00013562,2]
[361704975,1747708238509,-289.382433,0.00013699,2]
[361704976,1747708238520,-250.0,0.0001508,2]
[361704977,1747708238530,-300.0,0.00015161,2]
[361704978,1747708238540,-300.0,0.00015162,2]
[361704979,1747708238552,-1086.017567,0.00015162,2]
[361705078,1747708243662,-716.5618136,0.0001501,2]
[361705084,1747708246572,-4283.4381864,0.0001501,2]
[361705085,1747708246583,-113.982433,0.00015162,2]
[361705086,1747708246594,-300.0,0.00015162,2]
[361705087,1747708246604,-5298.0597881,0.00015163,2]
[361705088,1747708246614,-175.582694,0.00015435,2]
[361705089,1747708246624,-200.8630494,0.00015615,2]
[361705090,1747708246634,-2840.07532712,0.000159,2]
[361705091,1747708246644,-193.19203486,0.00016,3]
[361705092,1747708246653,-569.8226027,0.00016164,2]
[361705093,1747708246663,-158.1192336,0.00016164,2]
[361705094,1747708246674,-175.9907377,0.00016164,2]
[361705095,1747708246684,-175.9907377,0.00016164,2]
[361705096,1747708246694,-158.1192336,0.00016164,2]
[361705097,1747708246704,-569.8226027,0.00016164,2]
[361705098,1747708246714,-154.1682236,0.00016164,2]
[361705099,1747708246723,-353.2116745,0.00016164,2]
[361705100,1747708246732,-569.8226027,0.00016164,2]
[361705101,1747708246742,-547.1496647,0.00016164,2]
[361705102,1747708246753,-151.0,0.00016179,2]
[361705103,1747708246763,-105.77213787,0.00016179,2]
[361705104,1747708246775,-101.62786213,0.00016179,2]
[361705105,1747708246784,-1000.0,0.000162,2]
[361705106,1747708246795,-2840.07532702,0.0001621,2]
[361705107,1747708246808,-195.67291397,0.000163,3]
[361705108,1747708246822,-175.9907377,0.000163,2]
[361705109,1747708246831,-158.1192336,0.000163,2]
[361705110,1747708246841,-569.8226027,0.000163,2]
[361705111,1747708246852,-569.8226027,0.000163,2]
[361705112,1747708246863,-175.9907377,0.000163,2]
[361705113,1747708246873,-158.1192336,0.000163,2]
[361705114,1747708246883,-569.8226027,0.000163,2]
[361705115,1747708246893,-569.8226027,0.000163,2]
[361705116,1747708246905,-158.1192336,0.000163,2]
[361705117,1747708246916,-175.9907377,0.000163,2]
[361705118,1747708246926,-638.10833675,0.00016344,2]
[361705119,1747708246936,-193.0,0.000164,2]
[361705120,1747708246947,-193.0,0.000164,3]
[361705121,1747708246957,-193.0,0.000164,3]
[361705122,1747708246968,-193.0,0.000164,4]
[361705123,1747708246981,-193.0,0.000164,4]
[361705124,1747708246991,-193.0,0.000164,5]
[361705125,1747708247002,-193.0,0.000164,5]
[361705126,1747708247014,-363.1834287,0.000164,2]
[361705127,1747708247024,-153.0,0.000164,2]
[361705128,1747708247034,-158.0438358,0.000164,2]
[361705129,1747708247044,-577.7870091,0.000164,2]
[361705130,1747708247057,-351.3553543,0.000164,2]
[361705131,1747708247067,-322.1351761,0.000164,2]
[361705132,1747708247077,-153.2400017,0.000164,2]